bitfinex-derivatives/quotes_SOLF0:USTF0_20250516
["timestamp","ask_amount","ask_price","bid_price","bid_amount"]
[1747378150663,61.06,173.11,173.05,61.16]
[1747378151168,5.7751,173.12,173.09,5.7758]
[1747378151369,66.7951,173.12,173.09,5.7758]
[1747378151675,5.7753,173.11,173.09,5.7758]
[1747378152367,5.7753,173.11,173.08,5.7762]
[1747378152670,60.96,173.12,173.08,5.7762]
[1747378152966,5.7754,173.11,173.08,5.7762]
[1747378153159,60.96,173.12,173.08,5.7762]
[1747378153364,60.96,173.12,173.09,5.7759]
[1747378153564,5.7755,173.11,173.05,61.16]
[1747378154068,60.96,173.12,173.05,61.16]
[1747378154871,5.7754,173.11,173.08,5.776]
[1747378155059,5.7754,173.11,173.05,61.16]
[1747378155264,60.96,173.12,173.05,61.16]
[1747378155458,5.7757,173.1,173.07,5.7764]
[1747378155759,121.98,173.14,173.05,61.16]
[1747378156058,5.7748,173.13,173.1,5.7754]
[1747378156259,121.98,173.14,173.06,3.7151]
[1747378156458,127.7545,173.14,173.06,3.7151]
[1747378156664,121.94,173.14,173.06,3.7151]
[1747378156859,121.94,173.14,173.06,5.609]
[1747378157065,127.7145,173.14,173.11,5.7751]
[1747378157771,66.9345,173.14,173.11,5.7751]
[1747378157971,127.6745,173.14,173.11,5.7751]
[1747378158271,5.7747,173.13,173.11,5.7751]
[1747378158472,60.74,173.14,173.11,5.7751]
[1747378158771,66.5146,173.14,173.11,5.7751]
[1747378159173,60.74,173.14,173.11,5.7751]
[1747378159370,60.74,173.14,173.06,5.609]
[1747378159872,5.775,173.12,173.06,5.609]
[1747378160274,60.74,173.14,173.06,5.609]
[1747378160473,66.5144,173.14,173.11,5.775]
[1747378160673,66.5144,173.14,173.06,5.609]
[1747378160875,66.5144,173.14,173.11,5.775]
[1747378161074,60.74,173.14,173.06,5.609]
[1747378161573,60.74,173.14,173.12,5.7748]
[1747378161771,60.74,173.14,173.06,5.609]
[1747378162076,60.74,173.14,173.13,5.7746]
[1747378162576,60.74,173.14,173.09,61.14]
[1747378162778,295.99600955,173.15,173.09,61.14]
[1747378162971,5.7743,173.14,173.12,5.7748]
[1747378164381,295.99600955,173.15,173.09,61.14]
[1747378164780,295.99600955,173.15,173.11,5.775]
[1747378164978,5.7745,173.14,173.11,5.775]
[1747378165281,295.99600955,173.15,173.11,5.775]
[1747378165577,5.7748,173.13,173.1,5.7755]
[1747378165875,295.99600955,173.15,173.09,61.14]
[1747378166083,302.7691354,173.15,173.08,5.7761]
[1747378166582,5.7756,173.11,173.08,5.7761]
[1747378167481,5.775,173.12,173.06,5.609]
[1747378167687,302.7691354,173.15,173.06,5.609]
[1747378167981,295.99600955,173.15,173.06,5.609]
[1747378168177,295.99600955,173.15,173.1,5.7753]
[1747378168178,5.7748,173.13,173.1,5.7753]
[1747378168379,295.99600955,173.15,173.06,5.609]
[1747378168678,5.7746,173.13,173.11,5.7751]
[1747378170581,295.99600955,173.15,173.06,5.609]
[1747378170885,302.7691354,173.15,173.06,5.609]
[1747378171077,302.7691354,173.15,173.09,5.7759]
[1747378171576,5.7753,173.11,173.09,5.7759]
[1747378172686,5.7751,173.12,173.09,5.7759]
[1747378172987,302.7691354,173.15,173.09,5.7759]
[1747378174195,5.7753,173.11,173.09,5.7759]
[1747378175800,5.775,173.12,173.1,5.7756]
[1747378176186,5.775,173.12,173.09,5.7758]
[1747378176893,5.775,173.12,173.1,5.7756]
[1747378177094,235.47600955,173.15,173.06,5.609]
[1747378177293,295.53600955,173.15,173.06,5.609]
[1747378177495,301.31020955,173.15,173.12,5.7747]
[1747378177691,241.25020955,173.15,173.06,5.609]
[1747378177891,295.51600955,173.15,173.06,5.609]
[1747378178103,5.7743,173.14,173.06,5.609]
[1747378178703,5.7743,173.14,173.11,5.775]
[1747378179206,5.7743,173.14,173.11,5.7751]
[1747378179395,5.7747,173.13,173.11,5.7751]
[1747378179703,295.47600955,173.15,173.11,5.7751]
[1747378179905,5.7744,173.14,173.11,5.7751]
[1747378180206,295.47600955,173.15,173.11,5.7751]
[1747378181100,295.47600955,173.15,173.06,5.609]
[1747378181299,302.2491354,173.15,173.06,65.649]
[1747378181602,5.7752,173.12,173.09,5.7756]
[1747378181904,5.7752,173.12,173.06,65.649]
[1747378182704,5.7752,173.12,173.09,5.7756]
[1747378183005,5.7752,173.12,173.06,65.649]
[1747378183198,302.2491354,173.15,173.1,5.7754]
[1747378183601,5.7751,173.12,173.06,65.649]
[1747378183799,302.2491354,173.15,173.09,5.7757]
[1747378184603,5.7752,173.12,173.09,5.7757]
[1747378184805,302.2491354,173.15,173.06,65.649]
[1747378185105,295.47600955,173.15,173.06,65.649]
[1747378185800,5.7743,173.14,173.12,5.7748]
[1747378186007,235.47600955,173.15,173.06,65.649]
[1747378186212,59.82,173.14,173.06,65.649]
[1747378186501,59.82,173.14,173.13,5.7744]
[1747378187702,59.82,173.14,173.12,5.7748]
[1747378187903,59.82,173.14,173.06,65.649]
[1747378188308,241.25020955,173.15,173.12,5.7747]
[1747378188507,301.01020955,173.15,173.12,5.7747]
[1747378188706,301.01020955,173.15,173.06,65.649]
[1747378188900,5.7743,173.14,173.06,65.649]
[1747378189197,5.7743,173.14,173.12,5.7748]
[1747378190509,301.01010955,173.15,173.13,5.7746]
[1747378190710,295.23600955,173.15,173.06,65.649]
[1747378191406,295.23600955,173.15,173.14,5.7743]
[1747378191807,295.23600955,173.15,173.06,65.649]
[1747378192109,301.01010955,173.15,173.12,5.7746]
[1747378192311,301.01010955,173.15,173.06,65.649]
[1747378192607,301.01010955,173.15,173.13,5.7745]
[1747378192907,65.3738,173.16,173.06,65.649]
[1747378193398,5.7738,173.16,173.06,72.42212585]
[1747378193599,60.04,173.22,173.07,59.58]
[1747378193909,59.58,173.21,173.09,6.77312585]
[1747378194106,5.7732,173.18,173.15,5.7738]
[1747378194504,5.7732,173.18,173.1,60.04]
[1747378194905,65.3532,173.18,173.1,60.04]
[1747378196311,65.3532,173.18,173.15,5.7738]
[1747378197512,5.7734,173.17,173.15,5.7738]
[1747378200905,59.48,173.18,173.07,6.77312585]
[1747378201112,59.48,173.18,173.08,60.02]
[1747378201304,119.5,173.18,173.08,60.02]
[1747378201606,5.7741,173.15,173.12,5.7747]
[1747378201912,119.5,173.18,173.12,5.7747]
[1747378202817,5.7745,173.14,173.12,5.7747]
[1747378203220,126.27312585,173.18,173.11,5.7752]
[1747378204018,5.7745,173.14,173.11,5.7752]
[1747378205618,5.7745,173.14,173.12,5.7749]
[1747378206523,126.27312585,173.18,173.08,60.02]
[1747378206708,235.38527414,173.2,173.08,60.02]
[1747378206911,59.28,173.19,173.08,60.02]
[1747378207112,5.7734,173.17,173.14,5.774]
[1747378208020,59.28,173.19,173.12,60.02]
[1747378208519,59.28,173.19,173.12,65.7948]
[1747378209023,59.28,173.19,173.12,60.02]
[1747378209221,5.774,173.15,173.13,5.7746]
[1747378211124,5.774,173.15,173.12,65.7948]
[1747378211319,5.7743,173.14,173.12,60.02]
[1747378212827,59.28,173.19,173.12,60.02]
[1747378213027,59.28,173.19,173.09,59.24]
[1747378213222,5.7745,173.14,173.09,59.24]
[1747378213427,59.1,173.15,173.09,59.24]
[1747378214027,59.1,173.15,173.1,5.7755]
[1747378214227,59.1,173.15,173.09,59.24]
[1747378214820,59.1,173.15,173.09,65.0158]
[1747378215727,59.1,173.15,173.1,5.7756]
[1747378215930,5.7749,173.13,173.1,5.7756]
[1747378216427,59.1,173.15,173.1,5.7756]
[1747378216830,5.775,173.12,173.09,65.0158]
[1747378217225,59.1,173.15,173.06,5.609]
[1747378217528,5.7756,173.11,173.06,64.849]
[1747378218726,5.7756,173.11,173.09,5.7759]
[1747378219230,5.7751,173.12,173.09,5.7759]
[1747378219430,65.87312585,173.15,173.09,5.7759]
[1747378220032,65.87312585,173.15,173.08,5.7762]
[1747378220626,65.87312585,173.15,173.07,5.7765]
[1747378221027,65.87312585,173.15,173.06,62.9551]
[1747378221325,5.7752,173.12,173.09,5.7757]
[1747378221524,58.94,173.11,173.09,5.7757]
[1747378221831,58.94,173.11,173.1,5.7756]
[1747378222332,58.94,173.11,173.09,5.7758]
[1747378222630,58.94,173.11,173.06,62.9551]
[1747378222938,64.7156,173.11,173.08,5.7761]
[1747378223531,5.7756,173.1,173.08,5.7761]
[1747378223831,58.94,173.11,173.06,62.9551]
[1747378224025,5.776,173.09,173.06,62.9551]
[1747378224232,58.94,173.11,173.07,5.7764]
[1747378224431,58.94,173.11,173.06,62.9551]
[1747378224827,58.94,173.11,173.06,68.7319]
[1747378225532,5.7761,173.09,173.06,68.7319]
[1747378227233,58.94,173.11,173.06,59.24]
[1747378227436,58.94,173.11,173.02,3.8275]
[1747378227936,58.94,173.11,173.03,5.7777]
[1747378228133,58.94,173.11,173.02,3.8275]
[1747378228837,5.7766,173.08,173.02,3.8275]
[1747378230039,5.7766,173.08,173.05,5.7773]
[1747378230438,5.7766,173.07,173.02,3.8275]
[1747378230634,5.7766,173.07,173.04,5.7774]
[1747378231740,58.94,173.11,173.02,3.8275]
[1747378232443,58.94,173.11,173.04,5.7774]
[1747378232642,58.94,173.11,173.02,3.8275]
[1747378233142,5.7765,173.08,173.05,5.777]
[1747378233638,5.7765,173.08,173.02,3.8275]
[1747378233839,5.7767,173.07,173.04,5.7775]
[1747378234040,58.94,173.11,173.02,3.8275]
[1747378234446,5.7769,173.07,173.03,5.7778]
[1747378234637,64.4169,173.07,173.02,3.8275]
[1747378234833,58.64,173.07,173.02,3.8275]
[1747378235038,58.64,173.07,173.04,5.7773]
[1747378235543,58.64,173.07,173.05,5.7773]
[1747378236146,64.4167,173.07,173.04,5.7775]
[1747378236345,58.64,173.07,173.02,3.8275]
[1747378237146,64.4169,173.07,173.03,5.7777]
[1747378237452,4.32733735,173.04,173.0,59.24]
[1747378237645,4.32733735,173.04,173.0,5.7789]
[1747378237948,4.32733735,173.04,172.98,1.8953]
[1747378238143,10.10513735,173.04,173.0,5.7787]
[1747378238442,4.32733735,173.04,173.0,5.7787]
[1747378238745,10.10513735,173.04,173.0,5.7787]
[1747378239143,4.32733735,173.02,173.0,5.7787]
[1747378239441,6.7655372,173.06,173.0,5.7787]
[1747378239842,5.7781,173.03,173.0,5.7787]
[1747378240042,58.58,173.03,173.0,5.7787]
[1747378240239,58.58,173.03,172.99,5.7791]
[1747378240540,64.3582,173.03,172.97,59.26]
[1747378240745,58.58,173.03,172.97,59.26]
[1747378242650,58.58,173.03,173.01,5.7785]
[1747378247153,64.3581,173.03,173.01,5.7785]
[1747378247756,5.7783,173.02,173.0,5.7788]
[1747378248060,58.58,173.03,173.0,5.7788]
[1747378248354,64.3581,173.03,173.0,5.7788]
[1747378248954,58.58,173.03,172.98,5.7793]
[1747378249548,5.7788,173.01,172.98,5.7793]
[1747378249755,5.7788,173.01,172.99,5.7792]
[1747378249949,58.58,173.03,172.99,5.7792]
[1747378250246,5.7784,173.02,172.99,5.7792]
[1747378250754,64.3581,173.03,173.0,5.7789]
[1747378251954,58.58,173.03,172.97,59.26]
[1747378253050,122.9574,173.05,172.97,59.26]
[1747378253252,64.3774,173.05,172.97,59.26]
[1747378254358,58.6,173.05,173.03,5.7777]
[1747378254856,64.3775,173.05,173.02,5.7781]
[1747378255057,58.6,173.05,173.02,5.7781]
[1747378256456,5.7777,173.04,173.01,5.7785]
[1747378256657,58.6,173.05,172.97,59.26]
[1747378256858,5.7786,173.02,172.97,59.26]
[1747378257260,58.6,173.05,172.98,5.7795]
[1747378257465,58.6,173.05,172.97,59.26]
[1747378257666,58.6,173.04,172.97,59.26]
[1747378257865,5.7787,173.01,172.98,5.7794]
[1747378258168,5.7787,173.01,172.97,59.26]
[1747378258568,5.7784,173.02,172.99,5.779]
[1747378258967,58.6,173.04,172.97,59.26]
[1747378259163,5.7783,173.03,172.99,5.7791]
[1747378259468,58.6,173.04,172.99,5.7791]
[1747378259865,5.7785,173.02,172.99,5.7791]
[1747378260459,5.7785,173.02,172.97,59.26]
[1747378261367,5.7785,173.02,172.99,5.7791]
[1747378261763,5.7787,173.01,172.99,5.7791]
[1747378263569,5.7784,173.02,172.99,5.7791]
[1747378263969,5.7784,173.02,173.0,5.7789]
[1747378265574,5.7784,173.02,172.99,5.7791]
[1747378265864,5.7784,173.02,172.97,59.26]
[1747378266072,58.6,173.04,173.02,5.7781]
[1747378266264,58.6,173.05,172.97,59.26]
[1747378266666,64.3774,173.05,172.97,59.26]
[1747378267370,58.6,173.05,173.03,5.7778]
[1747378267570,5.7771,173.06,173.03,5.7778]
[1747378267767,58.58,173.05,173.03,5.7778]
[1747378268481,64.3573,173.05,173.02,5.7781]
[1747378268673,58.58,173.05,172.97,59.26]
[1747378269469,5.7778,173.04,173.01,5.7784]
[1747378270170,65.3455372,173.03,172.95,3.8282]
[1747378270467,6.7655372,173.0,172.94,126.77948406]
[1747378270668,6.7655372,172.97,172.88,62.3205]
[1747378270975,65.3455372,172.97,172.88,62.3205]
[1747378271165,5.7817,172.92,172.89,5.7825]
[1747378271365,5.7817,172.92,172.88,62.3205]
[1747378271662,58.58,172.94,172.88,62.3205]
[1747378271861,5.7815,172.93,172.9,5.7821]
[1747378272670,5.7818,172.92,172.88,68.1032]
[1747378272966,65.3455372,172.94,172.88,3.7405]
[1747378273164,5.783,172.88,172.85,5.7838]
[1747378273567,5.783,172.88,172.82,58.58]
[1747378273768,58.58,172.9,172.82,58.58]
[1747378274380,5.7827,172.89,172.84,5.784]
[1747378274672,5.7827,172.89,172.82,58.58]
[1747378274875,64.3627,172.89,172.82,58.58]
[1747378275573,64.3627,172.89,172.85,5.7837]
[1747378276202,64.3627,172.89,172.86,5.7836]
[1747378277280,58.58,172.89,172.86,5.7836]
[1747378277479,58.58,172.89,172.82,58.58]
[1747378277674,58.6,172.91,172.82,58.58]
[1747378277874,58.6,172.91,172.82,65.3455372]
[1747378278177,58.6,172.91,172.83,58.6]
[1747378278578,58.6,172.91,172.9,5.7823]
[1747378279269,58.6,172.91,172.89,5.7825]
[1747378279781,58.6,172.91,172.88,5.7829]
[1747378281779,64.3821,172.91,172.87,5.7832]
[1747378282077,64.3821,172.91,172.82,65.3455372]
[1747378282781,5.7823,172.9,172.82,65.3455372]
[1747378283282,58.6,172.91,172.82,65.3455372]
[1747378283581,58.6,172.91,172.88,5.7827]
[1747378284980,58.6,172.91,172.87,5.7832]
[1747378285182,58.6,172.91,172.82,58.58]
[1747378286583,64.3822,172.91,172.82,58.58]
[1747378286783,58.6,172.91,172.82,58.58]
[1747378287182,5.7826,172.9,172.87,5.7832]
[1747378287886,5.7826,172.9,172.88,5.783]
[1747378289588,5.7826,172.9,172.87,5.7832]
[1747378290985,5.7826,172.9,172.88,5.783]
[1747378291288,5.7826,172.9,172.82,58.58]
[1747378291492,5.7826,172.9,172.87,5.7831]
[1747378292086,58.6,172.91,172.82,58.58]
[1747378292586,5.7829,172.89,172.82,58.58]
[1747378293193,5.7829,172.89,172.86,5.7836]
[1747378295495,5.7824,172.9,172.87,5.7831]
[1747378295794,58.6,172.91,172.87,5.7831]
[1747378296094,5.7825,172.9,172.87,5.7831]
[1747378297009,64.3821,172.91,172.88,5.7829]
[1747378298097,5.7823,172.9,172.88,5.7829]
[1747378298698,64.382,172.91,172.89,5.7826]
[1747378298897,58.6,172.91,172.89,5.7826]
[1747378299197,58.6,172.91,172.82,58.58]
[1747378299892,64.382,172.91,172.88,5.7827]
[1747378300087,64.382,172.91,172.82,58.58]
[1747378300394,5.782,172.91,172.82,58.58]
[1747378301191,58.62,172.92,172.82,58.58]
[1747378301397,6.7655372,172.9,172.8,64.4218]
[1747378301599,58.6,172.89,172.8,64.4218]
[1747378301795,58.62,172.88,172.84,5.7841]
[1747378303097,5.7833,172.87,172.84,5.7841]
[1747378303298,5.7833,172.87,172.85,5.7839]
[1747378306599,5.7833,172.87,172.84,5.7842]
[1747378306804,5.7837,172.86,172.84,5.7842]
[1747378307304,5.7834,172.87,172.84,5.7842]
[1747378308004,5.7834,172.87,172.85,5.7839]
[1747378309308,5.7834,172.87,172.84,5.7841]
[1747378310010,5.7837,172.86,172.83,5.7845]
[1747378310704,5.7834,172.87,172.84,5.7841]
[1747378312411,64.4031,172.88,172.8,64.4218]
[1747378313406,64.4031,172.88,172.86,5.7836]
[1747378313611,58.62,172.88,172.8,64.4218]
[1747378314010,58.62,172.88,172.86,5.7835]
[1747378314611,64.4031,172.88,172.86,5.7835]
[1747378315916,58.62,172.88,172.87,5.7833]
[1747378317816,64.3827,172.89,172.87,5.7833]
[1747378318017,122.9827,172.89,172.87,5.7833]
[1747378319516,247.26829791,172.95,172.88,5.783]
[1747378319517,5.7821,172.91,172.88,5.783]
[1747378319817,58.6,172.9,172.8,64.4218]
[1747378320117,5.7828,172.89,172.87,5.7832]
[1747378321820,64.3824,172.9,172.87,5.7832]
[1747378322019,58.6,172.9,172.86,5.7835]
[1747378322220,58.6,172.9,172.8,64.4218]
[1747378322416,5.7831,172.88,172.8,64.4218]
[1747378322624,58.6,172.9,172.85,5.7838]
[1747378322923,5.7832,172.88,172.85,5.7838]
[1747378323124,58.6,172.9,172.85,5.7838]
[1747378323532,5.7832,172.88,172.85,5.7838]
[1747378323719,58.6,172.9,172.85,5.7838]
[1747378323921,58.6,172.9,172.84,5.7842]
[1747378324225,58.6,172.9,172.8,64.4218]
[1747378324426,6.7655372,172.89,172.82,5.785]
[1747378324721,5.7844,172.84,172.82,5.785]
[1747378325124,58.6,172.85,172.82,5.785]
[1747378325324,64.3841,172.85,172.83,5.7846]
[1747378325625,58.6,172.85,172.83,5.7846]
[1747378325833,58.6,172.85,172.8,64.4218]
[1747378326527,58.6,172.85,172.84,5.7843]
[1747378326830,5.7834,172.87,172.8,64.4218]
[1747378327727,5.7841,172.85,172.8,64.4218]
[1747378327924,58.58,172.88,172.83,5.7844]
[1747378328125,58.58,172.88,172.8,64.4218]
[1747378328627,58.58,172.88,172.84,5.7841]
[1747378328827,5.7838,172.86,172.8,64.4218]
[1747378329832,5.7838,172.86,172.83,5.7844]
[1747378330628,58.58,172.88,172.82,5.785]
[1747378331628,5.7841,172.85,172.82,5.785]
[1747378334131,5.7838,172.86,172.83,5.7846]
[1747378334329,58.58,172.88,172.8,64.4218]
[1747378334730,5.7837,172.86,172.84,5.7842]
[1747378335437,58.58,172.88,172.85,5.784]
[1747378336436,5.7835,172.87,172.84,5.7842]
[1747378336834,58.58,172.88,172.84,5.7842]
[1747378337339,5.7838,172.86,172.83,5.7846]
[1747378337544,58.58,172.88,172.8,64.4218]
[1747378337836,5.7845,172.84,172.81,5.7851]
[1747378338236,65.3455372,172.88,172.8,3.9151]
[1747378338439,58.58,172.86,172.8,3.9151]
[1747378338625,5.7849,172.83,172.8,9.7005]
[1747378344038,58.58,172.84,172.79,126.86503652]
[1747378344840,5.7855,172.81,172.79,126.86503652]
[1747378345039,58.58,172.84,172.79,126.86503652]
[1747378345237,5.7855,172.81,172.78,5.7861]
[1747378346438,5.7855,172.81,172.79,5.786]
[1747378349343,5.7851,172.82,172.79,5.786]
[1747378351245,5.7851,172.82,172.8,5.7856]
[1747378352143,64.3644,172.84,172.75,1.9632]
[1747378352343,58.58,172.84,172.75,1.9632]
[1747378352847,5.7847,172.83,172.8,5.7854]
[1747378353246,5.7847,172.83,172.75,1.9632]
[1747378353445,5.7847,172.83,172.81,5.7853]
[1747378353946,5.7847,172.83,172.8,5.7855]
[1747378354441,5.7847,172.83,172.75,1.9632]
[1747378354645,5.7847,172.83,172.81,5.7852]
[1747378354946,58.56,172.84,172.75,1.9632]
[1747378355149,58.56,172.84,172.82,5.7847]
[1747378355853,64.3445,172.84,172.82,5.7847]
[1747378356242,58.56,172.84,172.82,5.7847]
[1747378356649,58.58,172.86,172.83,5.7845]
[1747378356847,58.56,172.85,172.83,5.7845]
[1747378357346,64.3638,172.86,172.83,5.7845]
[1747378357549,122.9238,172.86,172.83,5.7845]
[1747378357748,122.9238,172.86,172.78,58.6]
[1747378358143,122.9238,172.86,172.83,5.7843]
[1747378358844,122.9238,172.86,172.84,5.7843]
[1747378361346,122.9238,172.86,172.83,5.7845]
[1747378363057,5.784,172.85,172.83,5.7845]
[1747378363358,117.14,172.86,172.84,5.7843]
[1747378363753,122.9239,172.86,172.84,5.7843]
[1747378363957,117.14,172.86,172.83,5.7845]
[1747378365556,5.784,172.85,172.83,5.7845]
[1747378366958,5.784,172.85,172.82,5.7848]
[1747378369262,5.784,172.85,172.83,5.7846]
[1747378369660,5.784,172.85,172.78,58.6]
[1747378369859,5.784,172.85,172.83,5.7846]
[1747378370958,5.784,172.85,172.78,58.6]
[1747378371263,5.784,172.85,172.79,4.33855042]
[1747378371458,5.784,172.85,172.82,5.7847]
[1747378371756,5.784,172.85,172.79,4.33855042]
[1747378372560,5.784,172.85,172.83,5.7846]
[1747378374463,121.45855042,172.86,172.81,5.7853]
[1747378374965,5.7846,172.84,172.81,5.7853]
[1747378375768,5.7846,172.84,172.82,5.7849]
[1747378376866,5.7846,172.83,172.81,5.7852]
[1747378377163,121.45855042,172.86,172.81,5.7852]
[1747378377359,121.45855042,172.86,172.78,58.6]
[1747378377967,5.7843,172.85,172.82,5.7848]
[1747378379658,5.7843,172.85,172.83,5.7846]
[1747378380663,5.7843,172.84,172.82,5.7848]
[1747378381164,121.45855042,172.86,172.78,58.6]
[1747378381364,5.7844,172.84,172.81,5.7852]
[1747378381765,5.7844,172.84,172.82,5.785]
[1747378384165,4.33855042,172.84,172.78,58.6]
[1747378384365,4.33855042,172.84,172.77,4.33855042]
[1747378384765,5.785,172.82,172.77,4.33855042]
[1747378386765,5.7853,172.81,172.75,64.84175042]
[1747378387566,5.7853,172.81,172.79,5.7858]
[1747378388162,64.285,172.82,172.79,5.7858]
[1747378388357,64.285,172.82,172.75,64.84175042]
[1747378388358,58.5,172.82,172.78,5.7862]
[1747378388561,62.83855042,172.82,172.75,64.84175042]
[1747378388769,5.7857,172.8,172.75,64.84175042]
[1747378389365,5.7857,172.8,172.78,5.7861]
[1747378389862,62.83855042,172.82,172.75,60.5032]
[1747378389863,5.7855,172.81,172.75,60.5032]
[1747378390067,4.33855042,172.8,172.75,60.5032]
[1747378390466,10.12435042,172.8,172.77,5.7864]
[1747378391169,5.786,172.79,172.77,5.7864]
[1747378391668,4.33855042,172.78,172.74,3.8153]
[1747378391868,62.83855042,172.78,172.74,3.8153]
[1747378392168,5.7868,172.77,172.74,3.8153]
[1747378393266,5.7868,172.77,172.74,9.6028]
[1747378394366,127.12515042,172.78,172.75,5.7873]
[1747378395069,5.7867,172.77,172.75,5.7873]
[1747378395761,5.7867,172.77,172.74,5.7876]
[1747378396169,5.7867,172.77,172.72,126.92677632]
[1747378396365,127.12495042,172.78,172.75,5.7871]
[1747378397868,5.7867,172.77,172.75,5.7871]
[1747378400474,5.7867,172.77,172.74,5.7875]
[1747378401274,121.33855042,172.78,172.72,126.92677632]
[1747378401475,4.33855042,172.76,172.72,126.92677632]
[1747378401870,5.7875,172.75,172.73,5.7878]
[1747378402072,4.33855042,172.76,172.7,3.8638]
[1747378403278,4.33855042,172.76,172.71,5.7885]
[1747378403779,5.7879,172.74,172.71,5.7885]
[1747378403977,64.2879,172.74,172.71,5.7885]
[1747378404881,64.2879,172.74,172.72,5.7883]
[1747378405080,64.2879,172.74,172.7,3.8638]
[1747378405275,5.7881,172.73,172.7,3.8638]
[1747378405984,64.2878,172.74,172.71,5.7885]
[1747378406278,58.5,172.74,172.7,8.20235042]
[1747378406669,58.5,172.74,172.73,5.788]
[1747378410278,64.2878,172.74,172.72,5.7882]
[1747378410483,4.33855042,172.73,172.68,1.9073]
[1747378410989,5.7885,172.72,172.7,5.7889]
[1747378412680,10.12665042,172.73,172.71,5.7885]
[1747378414987,10.12665042,172.73,172.7,5.7888]
[1747378415187,5.7883,172.72,172.7,5.7888]
[1747378416189,10.12665042,172.73,172.68,1.9073]
[1747378416589,4.33855042,172.73,172.68,1.9073]
[1747378417691,122.8078,172.74,172.68,1.9073]
[1747378417888,117.02,172.74,172.68,1.9073]
[1747378418892,122.8077,172.74,172.72,5.7881]
[1747378419092,117.02,172.74,172.72,5.7881]
[1747378421695,122.8077,172.74,172.72,5.7881]
[1747378424093,5.788,172.73,172.68,1.9073]
[1747378424595,5.788,172.73,172.7,5.7888]
[1747378425905,5.788,172.73,172.71,5.7886]
[1747378426304,5.7883,172.72,172.68,1.9073]
[1747378426508,117.02,172.74,172.7,5.7888]
[1747378426807,5.7882,172.73,172.7,5.7888]
[1747378428208,5.7884,172.72,172.7,5.7888]
[1747378428410,4.33855042,172.73,172.69,5.7892]
[1747378428708,4.33855042,172.73,172.68,1.9073]
[1747378429006,5.7885,172.72,172.68,1.9073]
[1747378430209,5.7885,172.72,172.69,5.7893]
[1747378431406,5.7887,172.71,172.69,5.7893]
[1747378432008,5.7884,172.72,172.7,5.789]
[1747378432207,4.33855042,172.73,172.68,1.9073]
[1747378432905,4.33855042,172.73,172.66,126.96322484]
[1747378433106,5.7889,172.71,172.68,5.7894]
[1747378435408,5.7889,172.71,172.69,5.7893]
[1747378437310,58.44,172.7,172.66,126.96322484]
[1747378437517,116.9,172.7,172.66,126.96322484]
[1747378438115,5.7894,172.69,172.67,5.7898]
[1747378440219,122.6891,172.7,172.68,5.7896]
[1747378440815,122.6891,172.7,172.67,5.7899]
[1747378443016,122.6891,172.7,172.68,5.7896]
[1747378443418,5.7894,172.69,172.67,5.7898]
[1747378445220,122.6891,172.7,172.68,5.7896]